[Event "ESP-ch Teams Honor 2024"]
[Site "Melilla"]
[Date "2024.10.14"]
[Round "3.13"]
[White "Tabatabaei, M. Amin"]
[Black "Anton Guijarro, David"]
[Result "0-1"]
[ECO "D02"]
[WhiteElo "2702"]
[BlackElo "2667"]
[Annotator "TA"]
[PlyCount "165"]
[EventDate "2024.10.11"]
[EventType "team-tourn"]
[EventCountry "ESP"]
[SourceTitle "playchess.com"]
[Source "ChessBase"]
[SourceQuality "1"]
[WhiteTeam "Andreu"]
[BlackTeam "Casablanca"]
[TimeControl "5400+30"]

{[%evp 10,165,7,0,0,4,0,0,-1,-20,-5,-10,-13,-16,-5,0,4,-20,-10,-22,0,0,31,19,19,23,25,26,29,16,26,25,45,45,39,36,31,37,27,32,62,26,64,26,24,24,52,52,66,61,69,49,49,52,63,44,62,50,48,19,70,73,83,76,91,57,87,58,87,94,198,80,88,86,77,81,47,44,43,43,70,50,192,0,54,0,54,0,68,0,35,30,62,12,12,0,0,0,8,8,8,8,89,103,264,264,357,337,327,277,290,305,314,322,317,329,307,284,451,424,506,518,537,381,410,400,393,126,95,0,0,-1050,-960,-846,-804,-858,-726,-845,-841,-837,-840,-842,-720,-710,-751,-29983,-29984,-29984,-29985,-29985,-29985,-29985,-29986,-29986,-29987,-29991,-29992,-29992]} 1. d4 {[%emt 0:01:29]} Nf6 {[%emt 0:00:24]} 2. Nf3 {[%emt 0:00:13]} d5 {[%emt 0:00:21]} 3. Bf4 {[%emt 0:00:05]} e6 {[%emt 0:00:17]} 4. e3 {[%emt 0:00:08]} Bd6 {[%emt 0:00:14]} 5. Bd3 {[%emt 0:00:08]} Bxf4 {[%emt 0:01:54]} 6. exf4 {[%emt 0:00:07]} Qd6 {[%emt 0:00:09]} 7. Qd2 {[%emt 0:00:16]} b6 {[%emt 0:00:40]} 8. Nc3 {[%emt 0:00:07]} c5 {[%emt 0:00:59] The position is equal.} 9. h4 {[%emt 0:00:50]} a6 {[%emt 0:02:30]} 10. Ne5 {[%emt 0:00:57]} Nc6 {[%emt 0:03:00]} 11. Nxc6 {[%emt 0:03:34]} Qxc6 {[%emt 0:00:11]} 12. Be2 {[%emt 0:11:07]} Bb7 {[%emt 0:08:46]} 13. Rh3 {[%emt 0:15:07]} O-O {[%emt 0:22:00]} 14. h5 {[%emt 0:09:22]} h6 {[%emt 0:03:11]} 15. g4 {[%emt 0:03:44]} cxd4 {[%emt 0:00:22]} 16. Qxd4 {[%emt 0:04:21]} Qc5 {[%emt 0:02:37]} 17. O-O-O {[%emt 0:00:14]} Qxd4 {[%emt 0:06:35]} 18. Rxd4 {[%emt 0:00:08]} b5 {[%emt 0:00:28]} 19. a4 {[%emt 0:01:59]} Bc6 {[%emt 0:03:39]} 20. a5 {[%emt 0:11:49]} Ne8 {[%emt 0:13:46]} 21. Na2 {[%emt 0:05:40]} Nd6 {[%emt 0:00:28]} 22. Nb4 {[%emt 0:00:08]} Bb7 {[%emt 0:00:27]} 23. Re3 {[%emt 0:04:09][%cal Of4f5]} Rfe8 {[%emt 0:02:17]} 24. b3 {[%emt 0:00:10]} Rac8 {[%emt 0:00:50]} 25. Kb2 {[%emt 0:01:44]} Kf8 {[%emt 0:00:49]} 26. Rd1 {[%emt 0:04:02]} Ne4 {[%emt 0:04:26]} 27. f3 {[%emt 0:00:58]} Nd6 {[%emt 0:03:13]} 28. c3 {[%emt 0:00:14]} Rc5 {[%emt 0:00:55]} 29. Nc2 {[%emt 0:00:35]} Rc7 {[%emt 0:02:04]} 30. Nd4 {[%emt 0:00:45]} Bc8 {[%emt 0:00:30]} 31. Re1 {[%emt 0:09:47]} Bd7 {[%emt 0:01:16]} 32. Nc2 {[%emt 0:02:11]} Bc8 {[%emt 0:03:54][%cal Bd7c8,Bc8b7,Bb7a8][%mdl 32]} 33. Bd3 {[%emt 0:01:22]} Nb7 {[%emt 0:10:17]} 34. b4 {[%emt 0:00:06]} Nd6 {[%emt 0:00:27]} (34... Nd8 $11) 35. Nd4 $14 {[%emt 0:00:10]} Rce7 {[%emt 0:01:43]} 36. R3e2 {[%emt 0:03:18]} Bb7 {[%emt 0:01:28]} 37. Kc2 {[%emt 0:01:09]} Ba8 {[%emt 0:00:53]} 38. Re5 {[%emt 0:00:58]} Bb7 {[%emt 0:00:56]} 39. g5 {[%emt 0:00:58]} Nc4 {[%emt 0:00:24]} (39... Bc8 $16 {might work better.}) 40. R5e2 {[%emt 0:03:58]} (40. Bxc4 $18 {and the rest is easy.} bxc4 41. f5 hxg5 42. h6 (42. fxe6 f6 $18)) 40... e5 $16 {[%emt 0:00:36]} 41. Nf5 {[%emt 0:00:57][%csl LRe7,LRh6]} Re6 {[%emt 0:00:13]} 42. gxh6 {[%emt 0:01:18]} gxh6 {[%emt 0:00:08]} 43. fxe5 {[%emt 0:00:37]} Nxe5 {[%emt 0:00:23]} 44. Nd4 {[%emt 0:00:59]} R6e7 {[%emt 0:00:08]} 45. Kd2 {[%emt 0:00:30]} Bc8 {[%emt 0:01:16]} (45... Nc4+ $1 $14 46. Bxc4 dxc4) 46. Re3 $2 {[%emt 0:00:17]} (46. Rg1 $18) 46... Bd7 {[%emt 0:00:39]} (46... Nc4+ $11 47. Bxc4 dxc4) 47. Bf1 {[%emt 0:00:35]} (47. f4 $14 Nxd3 48. Kxd3) 47... Bc8 {[%emt 0:00:34]} (47... Nc4+ $1 $11 48. Bxc4 dxc4) 48. Be2 {[%emt 0:00:36]} ({White should play} 48. R3e2 $14) 48... Bd7 {[%emt 0:00:26]} (48... Nc4+ $1 $11 49. Bxc4 dxc4) 49. Bd3 {[%emt 0:00:11]} ({White should try} 49. f4 $14 Nc4+ 50. Bxc4 dxc4 51. Rxe7 Rxe7 52. Re5) 49... Bc8 {[%emt 0:00:30]} 50. R3e2 {[%emt 0:00:24]} Bd7 {[%emt 0:00:24]} 51. Bb1 {[%emt 0:00:53]} ({Better is} 51. f4 $14 Nxd3 52. Kxd3) 51... Nc4+ $11 {[%emt 0:00:37]} 52. Kd3 {[%emt 0:00:24]} Ne5+ {[%emt 0:00:38]} 53. Kd2 {[%emt 0:00:04]} Nc4+ {[%emt 0:00:08]} 54. Kd1 {[%emt 0:00:17]} Ne3+ {[%emt 0:00:42]} 55. Kc1 {[%emt 0:00:28]} f5 {[%emt 0:00:44]} (55... Ng2 $1 $11 {remains equal.} 56. Rxe7 (56. Rxg2 $2 Rxe1+ 57. Kb2 Rh1 $19) 56... Rxe7 57. Rxe7 Kxe7) 56. f4 $16 {[%emt 0:00:30]} Kf7 $2 {[%emt 0:00:25]} (56... Ng2 $16 57. Rxe7 (57. Rxg2 Rxe1+ 58. Kb2 Rf1 $15) 57... Rxe7) 57. Rg1 $18 {[%emt 0:00:39]} Nc4 {[%emt 0:00:36]} 58. Rxe7+ {[%emt 0:00:09]} Rxe7 {[%emt 0:00:03]} 59. Bxf5 {[%emt 0:00:27]} Bxf5 {[%emt 0:00:34]} 60. Nxf5 {[%emt 0:00:02][%mdl 4096] Endgame. KRN-KRN} Re6 {[%emt 0:00:19]} 61. Nd4 {[%emt 0:01:56]} Re3 {[%emt 0:00:29]} 62. Kc2 {[%emt 0:00:04]} Rh3 {[%emt 0:00:40]} 63. Rg6 {[%emt 0:00:14]} Rh2+ {[%emt 0:00:31]} (63... Rxh5 $142 64. Rxa6 Rh2+ 65. Kd1 h5 66. Nxb5 h4) 64. Kd1 {[%emt 0:00:14]} Rh3 {[%emt 0:00:52]} 65. Rxa6 {[%emt 0:00:33]} Rxc3 {[%emt 0:00:11]} 66. Nf5 {[%emt 0:00:17]} d4 {[%emt 0:00:26]} 67. Nxh6+ {[%emt 0:00:18]} (67. Nxd4 Rd3+ 68. Ke2 Rxd4 $14) (67. Rxh6 Nb2+ 68. Ke1 d3 69. Rh7+ Ke6 70. Nd4+ Kd5 $18) 67... Ke8 {[%emt 0:00:44]} 68. Nf5 $2 {[%emt 0:01:01]} (68. Ra8+ $1 $18 Kd7 69. Ng4 Rd3+ 70. Ke1) 68... d3 $16 {[%emt 0:00:31] [#] ...Ra3 would now be deadly.} 69. h6 {[%emt 0:00:57]} (69. Nd6+ $1 $16 Kd7 70. Ne4 (70. Nxb5 $2 Rb3 $19)) 69... Ra3 $11 {[%emt 0:00:29][%cal Ra3a1]} 70. Ke1 $2 {[%emt 0:00:59][%mdl 8192] [#]} (70. Nd6+ $11 Kd7 71. Nxc4 (71. Nxb5 $2 Ra1#) 71... bxc4 72. Ra7+ Kd6 73. Ra8) 70... d2+ $1 $19 {[%emt 0:00:30]} 71. Ke2 {[%emt 0:00:00] [#]} Rd3 $3 {[%emt 0:00:40][%mdl 512]} 72. Ng7+ {[%emt 0:00:45]} Kf7 {[%emt 0:00:25]} 73. Kxd3 {[%emt 0:00:03]} d1=Q+ {[%emt 0:00:06]} 74. Ke4 {[%emt 0:00:00]} Qe1+ {[%emt 0:00:49]} 75. Kd5 {[%emt 0:00:10]} Qxb4 {[%emt 0:00:27]} 76. Ne6 {[%emt 0:00:17]} Ne3+ {[%emt 0:00:22]} (76... Nxa5 77. Ng5+ Ke7 78. h7 Qc4+ (78... Qxf4 79. Ra7+ Kf6 80. h8=Q+ Kf5 81. Rf7+ Kg4 82. Qh3+ Kxg5 83. Rg7+ Kf6 84. Qc3+ Kf5 85. Qc8+ Kf6 86. Qf8#) 79. Ke5 Nc6+ 80. Kf5 $15 (80. Rxc6 $2 Qxc6 81. f5 Qh6 $19)) 77. Kc6 {[%emt 0:00:13]} Kxe6 {[%emt 0:00:40] Black mates.} 78. h7 {[%emt 0:00:00]} Qc3+ {[%emt 0:00:21]} (78... Qxf4 $2 79. h8=Q (79. h8=R $2 Ke5 $19) 79... Qc4+ 80. Kb7+ Kd5 81. Qh5+ (81. Rb6 Nf5 $18) 81... Ke4 82. Rc6 $18) 79. Kb7+ {[%emt 0:00:09]} Kd5 {[%emt 0:00:35]} 80. Rg6 {[%emt 0:00:24]} Qh8 {[%emt 0:00:21]} (80... Qxa5 81. h8=Q (81. h8=B $2 {too greedy.} Nc4 $19) 81... Nc4 82. Rg5+ Ke4 83. Qh1+ Kd4 84. Rd5+ Kc3 85. Qe1+ Kb3 86. Rd3+ (86. Qxa5 Nxa5+ 87. Kb6 Kc4 $18) 86... Ka2 87. Qxa5+ Nxa5+ 88. Kb6) 81. Rg5+ {[%emt 0:00:03]} Kc4 {[%emt 0:00:28]} 82. Rh5 {[%emt 0:00:07]} Nd5 {[%emt 0:00:16]} 83. f5 {[%emt 0:00:15] Weighted Error Value: White=0.19 (very precise) /Black=0.30.  Loses game:     	White=1     	Black=1      Missed win:     	White=2     	---        Mistake:       	White=6     	Black=8      Inaccurate:     	White=5     	Black=9      OK:         	White=26    	Black=22     Best:        	White=5     	Black=4      Strong:       	---       	Black=1} 0-1

[Event "ESP-ch Teams Honor 2024"]
[Site "Melilla"]
[Date "2024.10.14"]
[Round "3.14"]
[White "Vallejo Pons, Francisco"]
[Black "Van Foreest, Jorden"]
[Result "1/2-1/2"]
[ECO "C47"]
[WhiteElo "2653"]
[BlackElo "2697"]
[Annotator "TA"]
[PlyCount "33"]
[EventDate "2024.10.11"]
[EventType "team-tourn"]
[EventCountry "ESP"]
[SourceTitle "playchess.com"]
[Source "ChessBase"]
[SourceQuality "1"]
[WhiteTeam "Casablanca"]
[BlackTeam "Andreu"]
[TimeControl "5400+30"]

{[%evp 9,33,0,0,0,0,0,0,0,0,0,0,0,0,0,0,0,0,-1,0,0,0,0,0,0,0,0]} 1. e4 {[%emt 0:00:18]} e5 {[%emt 0:00:16]} 2. Nf3 {[%emt 0:00:06]} Nc6 {[%emt 0:00:06]} 3. Nc3 {[%emt 0:00:06]} Nf6 {[%emt 0:00:26]} 4. a3 {[%emt 0:00:12]} d5 {[%emt 0:02:22]} 5. Bb5 {[%emt 0:00:58]} Nxe4 {[%emt 0:02:03] Die Stellung ist ausgeglichen.} 6. Qe2 {[%emt 0:01:12]} Qd6 {[%emt 0:02:38]} 7. Nxe4 {[%emt 0:00:41]} dxe4 {[%emt 0:00:05]} 8. Qxe4 {[%emt 0:00:05]} Bd7 $1 {[%emt 0:01:37]} 9. d4 {[%emt 0:00:17][%cal Rd4e5]} O-O-O {[%emt 0:06:04]} 10. dxe5 {[%emt 0:00:49]} (10. Nxe5 $2 {zu gefräßig.} Nxe5 11. Bxd7+ (11. dxe5 $2 {führt zum Matt.} Qd1+ 12. Kxd1 Bg4+ 13. Ke1 Rd1#) 11... Nxd7 $19) 10... Nxe5 {[%emt 0:00:32]} 11. Bxd7+ {[%emt 0:00:48]} Qxd7 {[%emt 0:00:54][%csl Gd8][%cal Rd7d1] [#]} 12. O-O {[%emt 0:01:17]} Nxf3+ {[%emt 0:01:04]} 13. Qxf3 {[%emt 0:00:05]} Qd5 {[%emt 0:02:02]} 14. Qh3+ {[%emt 0:00:49]} Qd7 {[%emt 0:01:55]} 15. Qf3 {[%emt 0:00:15]} Qd5 {[%emt 0:00:03]} 16. Qh3+ {[%emt 0:00:06]} Qd7 {[%emt 0:00:04]} 17. Qf3 {Hier war wenig los.   Gewichteter Fehlerwert: Weiß=0.00 (makellos) /Schwarz=0.00 (makellos) .  OK:         	Weiß=8     	Schwarz=3     Stark:        	---       	Schwarz=1} 1/2-1/2

[Event "ESP-ch Teams Honor 2024"]
[Site "Melilla"]
[Date "2024.10.14"]
[Round "3.15"]
[White "Vokhidov, Shamsiddin"]
[Black "Salgado Lopez, Ivan"]
[Result "1-0"]
[ECO "C54"]
[WhiteElo "2668"]
[BlackElo "2609"]
[Annotator "TA"]
[PlyCount "77"]
[EventDate "2024.10.11"]
[EventType "team-tourn"]
[EventCountry "ESP"]
[SourceTitle "playchess.com"]
[Source "ChessBase"]
[SourceQuality "1"]
[WhiteTeam "Andreu"]
[BlackTeam "Casablanca"]
[TimeControl "5400+30"]

{[%evp 12,77,19,12,19,36,38,35,38,33,49,2,8,0,0,0,3,0,36,13,51,35,56,21,26,31,35,30,30,22,29,20,22,33,22,18,10,26,17,0,17,0,22,0,0,0,0,0,0,-92,72,4,141,136,348,334,906,902,904,906,912,912,912,903,851,893,1135,1056]} 1. e4 {[%emt 0:00:04]} e5 {[%emt 0:00:07]} 2. Nf3 {[%emt 0:00:05]} Nc6 {[%emt 0:00:08]} 3. Bc4 {[%emt 0:00:05]} Bc5 {[%emt 0:00:10]} 4. c3 {[%emt 0:00:03]} Nf6 {[%emt 0:00:11]} 5. d3 {[%emt 0:00:03]} O-O {[%emt 0:00:36]} 6. O-O {[%emt 0:00:07]} d6 {[%emt 0:00:19]} 7. Re1 {[%emt 0:00:30]} a5 {[%emt 0:03:51]} 8. Bg5 {[%emt 0:01:34]} h6 {[%emt 0:00:25]} 9. Bh4 {[%emt 0:00:03]} Ba7 {[%emt 0:00:21] White is slightly better.} 10. Nbd2 {[%emt 0:05:50]} g5 {[%emt 0:00:28]} 11. Bg3 {[%emt 0:21:50]} (11. Nxg5 $1 $14 {should be considered.} hxg5 12. Bxg5) 11... Nh7 $11 {[%emt 0:00:13]} 12. Nf1 {[%emt 0:05:54]} h5 {[%emt 0:00:59] White must now prevent ...h4.} 13. h3 {[%emt 0:01:46]} Qf6 {[%emt 0:00:50]} (13... h4 $5 14. Bh2 $8 g4 15. hxg4 Bxg4 $11) 14. Ne3 {[%emt 0:01:42]} Qg7 {[%emt 0:06:40]} 15. Bb5 {[%emt 0:08:04]} Ne7 {[%emt 0:04:11]} 16. d4 {[%emt 0:00:31][%cal Rd4e5]} g4 $1 {[%emt 0:10:06]} 17. hxg4 {[%emt 0:01:17]} hxg4 {[%emt 0:00:12]} 18. Nh2 {[%emt 0:05:06]} exd4 {[%emt 0:05:50]} 19. cxd4 {[%emt 0:02:18]} f5 {[%emt 0:14:53]} 20. exf5 {[%emt 0:03:17]} Nxf5 {[%emt 0:00:19]} 21. Nxf5 {[%emt 0:00:10]} (21. Qxg4 $2 Qxg4 (21... Bxd4 22. Nxf5 Bxf5 23. Bc4+ Kh8 24. Qxg7+ Bxg7 25. Rad1 $11) 22. Nhxg4 Nxg3 (22... Nxd4 23. Bd3 $14) 23. fxg3 Bxd4 $19) 21... Bxf5 {[%emt 0:00:12]} 22. Bd3 {[%emt 0:02:36]} Bxd3 {[%emt 0:15:10]} 23. Qxd3 {[%emt 0:00:08]} Qxd4 {[%emt 0:00:12]} (23... Bxd4 $6 24. Re6 Bf6 25. Rae1 $16) 24. Qb3+ {[%emt 0:06:22]} Kh8 $1 {[%emt 0:01:48]} 25. Rad1 {[%emt 0:01:09] Dancing on a razor blade.} (25. Re7 {with more complications.} Qf6 26. Rxc7 Bxf2+ 27. Kh1) 25... Qg7 {[%emt 0:05:09]} 26. Qxb7 {[%emt 0:01:27]} Nf6 {[%emt 0:02:20]} 27. Qb5 $36 {[%emt 0:02:47][%cal Od1c1][%mdl 2048] White fights for an advantage.} Bc5 {[%emt 0:01:08]} 28. Re2 {[%emt 0:03:06]} Rab8 {[%emt 0:04:33]} 29. Qxa5 {[%emt 0:02:01]} Nh5 {[%emt 0:00:19][%csl LRb2,LRg3]} 30. Nf1 {[%emt 0:04:06]} (30. Kh1 $1 $11 Rxb2 31. Rxb2 Nxg3+ 32. fxg3 Qxb2 33. Qxc7 (33. Nxg4 Qe2 $15)) 30... Ra8 $2 {[%emt 0:16:15] [#]} (30... Rxb2 $17 31. Be5 Rxe2 32. Bxg7+ Nxg7) 31. Qc3 {[%emt 0:02:48]} ({White should play} 31. Qe1 $1 $16) 31... Nxg3 {[%emt 0:00:40]} (31... Qxc3 $1 $11 {remains equal.} 32. bxc3 Rf5) 32. Qxg3 $16 {[%emt 0:03:40]} (32. Nxg3 $6 Qxc3 33. bxc3 Bb6 $14) 32... Rxa2 $2 {[%emt 0:00:34] [#] This costs Black the game.} (32... Rf5 $16 {keeps fighting.} 33. Ne3 Re5) 33. Rd5 $1 $18 {[%emt 0:01:13]} Qh6 {[%emt 0:05:54] Wards off Qh4} (33... Ra5) 34. Qc3+ {[%emt 0:03:10] White is clearly winning.} Kh7 {[%emt 0:00:14]} 35. Rxc5 {[%emt 0:02:12]} dxc5 {[%emt 0:00:15]} 36. Re7+ {[%emt 0:00:03]} (36. Qxc5 Qf4 $14) 36... Kg8 {[%emt 0:00:11]} 37. Qc4+ {[%emt 0:00:16]} ({Not} 37. Qxc5 Qf4 $11 (37... Rxb2 $2 {perishes.} 38. Qd5+ Kh8 39. Qe5+ Kg8 40. Qxb2 $18)) (37. Rxc7 Qf6 38. Qxc5 Rxb2 $11) 37... Kh8 {[%emt 0:00:05]} 38. Qxa2 {[%emt 0:00:05]} g3 {[%emt 0:01:13]} 39. f3 {[%emt 0:01:54] Weighted Error Value: White=0.14 (very precise) /Black=0.34.  Loses game:     	---       	Black=1      Mistake:       	White=3     	Black=3      Inaccurate:     	---       	Black=2      OK:         	White=10    	Black=9      Best:        	White=1     	---        Strong:       	White=1     	Black=2} (39. Rxc7 $2 gxf2#) ({Weaker is} 39. fxg3 Rxf1+ 40. Kxf1 Qf6+ 41. Kg1 Qxe7 $14) 1-0

[Event "ESP-ch Teams Honor 2024"]
[Site "Melilla"]
[Date "2024.10.14"]
[Round "3.16"]
[White "Gines Esteo, Pedro Antonio"]
[Black "Arizmendi Martinez, Julen Luis"]
[Result "1-0"]
[ECO "D35"]
[WhiteElo "2477"]
[BlackElo "2507"]
[Annotator "TA"]
[PlyCount "61"]
[EventDate "2024.10.11"]
[EventType "team-tourn"]
[EventCountry "ESP"]
[SourceTitle "playchess.com"]
[Source "ChessBase"]
[SourceQuality "1"]
[WhiteTeam "Casablanca"]
[BlackTeam "Andreu"]
[TimeControl "5400+30"]

{[%evp 9,61,14,35,37,38,28,29,29,29,35,38,33,28,16,35,33,43,34,34,14,27,14,26,31,17,10,43,52,50,39,47,30,35,26,31,23,33,24,22,30,20,41,118,59,79,0,584,606,810,795,29981,29982,29982,29982]} 1. c4 {[%emt 0:00:07]} e6 {[%emt 0:01:54]} 2. Nc3 {[%emt 0:02:40]} d5 {[%emt 0:01:30]} 3. d4 {[%emt 0:00:15]} Nf6 {[%emt 0:03:57]} 4. cxd5 {[%emt 0:00:12]} exd5 {[%emt 0:00:09]} 5. Bg5 {[%emt 0:00:11]} Be6 {[%emt 0:09:40]} 6. e3 {[%emt 0:22:13]} Nbd7 {[%emt 0:01:09]} 7. Bd3 {[%emt 0:05:29]} c6 {[%emt 0:01:16]} 8. h3 {[%emt 0:15:05] White has an edge.} Bd6 {[%emt 0:04:44]} 9. Nge2 {[%emt 0:01:12]} O-O {[%emt 0:10:26]} 10. O-O {[%emt 0:09:18]} Re8 {[%emt 0:07:37]} 11. Qd2 {[%emt 0:01:20]} b5 {[%emt 0:09:57][%cal Bb7b5,Bb5b4][%mdl 32]} 12. Bf4 {[%emt 0:04:26]} Nb6 {[%emt 0:02:33]} 13. b3 {[%emt 0:02:52]} a5 {[%emt 0:12:46]} 14. a4 {[%emt 0:03:00]} b4 {[%emt 0:01:19] [#] Threatens to win with ...Bxf4.} 15. Nb1 {[%emt 0:04:55]} Rc8 {[%emt 0:02:49]} 16. Rc1 {[%emt 0:06:43]} Bxf4 {[%emt 0:15:29]} 17. Nxf4 {[%emt 0:05:35]} Nbd7 {[%emt 0:00:09]} 18. Ra2 {[%emt 0:02:20]} Qb6 {[%emt 0:04:36]} 19. Rac2 {[%emt 0:00:56]} Rc7 {[%emt 0:00:23]} 20. g4 {[%emt 0:03:43]} h6 {[%emt 0:02:05]} 21. Qd1 {[%emt 0:01:00]} Rec8 {[%emt 0:02:48]} 22. Nxe6 {[%emt 0:01:16]} fxe6 {[%emt 0:00:02]} 23. h4 {[%emt 0:00:05][%cal Bh3h4,Bh4g5,Bg5g6][%mdl 32] Hoping for g5.} c5 {[%emt 0:01:40]} 24. g5 {[%emt 0:00:03]} hxg5 {[%emt 0:00:09]} 25. hxg5 {[%emt 0:00:02] aiming for dxc5.} Ne4 {[%emt 0:00:55]} (25... cxd4 $14 26. gxf6 dxe3) 26. Bxe4 {[%emt 0:06:48]} (26. Qg4 $16) 26... dxe4 $14 {[%emt 0:00:03]} 27. dxc5 {[%emt 0:00:10]} ({Better is} 27. Qg4 $16) 27... Rxc5 $2 {[%emt 0:01:52][%mdl 8192]} (27... Qc6 $11 {and Black has nothing to worry.}) 28. Qxd7 $18 {[%emt 0:00:30][%cal Og5g6] Intending g6! and mate.} Rxc2 {[%emt 0:00:10]} 29. Rxc2 {[%emt 0:00:06]} Rxc2 {[%emt 0:00:04] [#]} 30. g6 $1 {[%emt 0:00:21][%cal Rd7e8]} ({Stronger than} 30. Qe8+ Kh7 31. Qh5+ Kg8 32. Qe8+ Kh7 33. Qh5+ Kg8 34. Qe8+ $11) 30... Rc1+ {[%emt 0:02:44]} 31. Kg2 {[%emt 0:00:06] Weighted Error Value: White=0.10 (very precise) /Black=0.50.  Loses game:     	---       	Black=1      Mistake:       	White=2     	Black=1      Inaccurate:     	---       	Black=2      OK:         	White=9     	Black=13} 1-0